bitfinex/quotes_ETHUSD_20251120
["timestamp","ask_amount","ask_price","bid_price","bid_amount"]
[1763654882762,0.4662,2920.8,2919.3,5.99737481]
[1763654882992,0.146,2920.7,2919.5,0.405504]
[1763654883247,0.146,2920.6,2920.3,5.99737481]
[1763654883452,0.146,2920.6,2920.0,0.405504]
[1763654883596,0.146,2920.6,2920.5,6.40287881]
[1763654883796,0.002,2920.9,2920.5,7.30987145]
[1763654884043,0.53685783,2922.7,2920.6,1.56389115]
[1763654884344,0.144,2920.9,2920.6,1.56389115]
[1763654884514,0.146,2920.9,2920.8,6.90436745]
[1763654884847,3.42079811,2923.3,2920.9,1.31249664]
[1763654885146,3.42079811,2923.3,2921.0,1.31249664]
[1763654885147,0.146,2921.6,2921.0,1.31249664]
[1763654885295,0.146,2921.6,2921.0,5.99737481]
[1763654885500,0.146,2921.6,2919.6,0.72562267]
[1763654885691,6.99157589,2921.6,2919.4,5.99737481]
[1763654885896,6.99157589,2921.6,2919.0,7.03771766]
[1763654885897,0.4662,2922.7,2920.4,5.99737481]
[1763654886128,0.6122,2921.4,2919.0,3.61190283]
[1763654886342,0.6122,2921.4,2919.5,5.99737481]
[1763654886553,0.002,2921.5,2920.1,0.90699264]
[1763654886842,0.146,2921.3,2919.7,5.99737481]
[1763654887007,0.146,2921.3,2919.9,3.42477482]
[1763654887208,0.146,2921.2,2919.3,0.4234]
[1763654887536,0.002,2921.5,2920.5,5.99737481]
[1763654887694,0.146,2921.1,2920.2,5.99737481]
[1763654888044,0.002,2921.5,2920.7,5.99737481]
[1763654888224,0.145,2921.4,2920.8,1.73589664]
[1763654888402,0.145,2921.4,2920.2,6.59711229]
[1763654888603,0.145,2921.4,2920.2,5.99737481]
[1763654888797,0.145,2921.3,2919.4,0.4234]
[1763654889044,0.4671,2921.5,2919.4,0.4234]
[1763654889345,0.146,2921.2,2919.4,3.84876137]
[1763654889495,0.145,2921.1,2919.6,5.99737481]
[1763654889695,0.145,2921.1,2919.3,5.99737481]
[1763654889926,0.90699264,2920.9,2918.3,9.61012731]
[1763654890250,0.90699264,2920.7,2918.1,0.4234]
[1763654890395,0.145,2920.6,2918.6,5.96307184]
[1763654890596,0.4651,2920.9,2919.0,5.99737481]
[1763654890597,0.145,2920.5,2919.0,5.99737481]
[1763654890923,6.8490805,2920.1,2917.9,5.99737481]
[1763654891132,6.8490805,2920.1,2917.9,12.85161387]
[1763654891331,7.0468614,2920.2,2918.4,5.99737481]
[1763654891637,0.90699264,2919.8,2917.9,5.99737481]
[1763654891798,0.90699264,2919.6,2916.9,6.59711229]
[1763654891998,0.0992,2919.7,2917.8,5.99737481]
[1763654891999,0.4651,2919.7,2917.8,5.99737481]
[1763654892234,0.90699264,2919.5,2917.3,5.99737481]
[1763654892497,0.6101,2919.6,2917.0,0.65971123]
[1763654892498,1.31249664,2919.0,2917.0,0.65971123]
[1763654892732,0.90699264,2918.3,2916.2,9.42649059]
[1763654892945,0.90699264,2918.0,2916.4,3.42888492]
[1763654893157,0.6631,2917.9,2916.3,0.94274906]
[1763654893322,0.6631,2917.9,2915.2,5.99737481]
[1763654893323,5.009134,2917.6,2915.2,5.99737481]
[1763654893510,0.4651,2917.5,2915.8,5.99737481]
[1763654894049,2.184,2917.8,2915.9,5.99737481]
[1763654894269,0.4651,2917.8,2916.1,3.43019982]
[1763654894430,0.4651,2917.8,2916.2,0.34301998]
[1763654894922,0.0992,2917.5,2916.1,0.001]
[1763654895105,6.85494926,2917.6,2916.1,0.001]
[1763654895306,4.76696264,2917.5,2916.1,0.001]
[1763654895512,2.415799,2917.4,2916.1,0.001]
[1763654895744,0.4651,2917.4,2916.1,0.001]
[1763654895911,1.37209264,2917.3,2916.1,0.001]
[1763654896122,0.4651,2917.3,2916.1,0.001]
[1763654896418,0.405504,2917.1,2913.6,10.29646014]
[1763654896647,0.198,2916.2,2914.0,5.99737481]
[1763654896850,0.6631,2917.0,2915.1,5.99737481]
[1763654897113,0.145,2916.9,2915.1,5.99737481]
[1763654897313,0.6101,2916.8,2915.2,0.59973748]
[1763654897560,0.6101,2916.8,2914.9,5.99737481]
[1763654897714,0.6101,2916.8,2915.4,5.99737481]
[1763654897929,0.4651,2916.7,2915.1,5.99737481]
[1763654898373,0.198,2917.0,2915.2,0.405504]
[1763654898670,0.145,2916.9,2915.6,5.99737481]
[1763654898872,0.4651,2917.0,2915.7,0.59973748]
[1763654899178,0.4651,2917.7,2915.8,13.718362]
[1763654899385,0.144,2917.6,2916.1,5.99737481]
[1763654899569,0.144,2917.6,2916.2,0.59973748]
[1763654899874,0.4651,2917.5,2915.7,4.029417]
[1763654900058,0.4651,2917.5,2916.0,5.99737481]
[1763654900265,0.4651,2918.1,2916.5,5.99737481]
[1763654900572,0.144,2918.0,2916.3,0.405504]
[1763654900774,0.144,2918.0,2916.7,5.99737481]
[1763654900974,0.86476899,2919.6,2917.8,3.4272397]
[1763654901297,1.14185405,2919.8,2917.7,5.99737481]
[1763654901298,0.144,2919.5,2918.2,5.99737481]
[1763654901577,1.32986899,2920.6,2918.7,5.99737481]
[1763654901760,0.86476899,2920.7,2919.2,5.99737481]
[1763654902074,0.144,2920.6,2919.7,5.99737481]
[1763654902235,0.144,2920.6,2919.2,5.99737481]
[1763654902435,0.86476899,2921.2,2920.2,5.99737481]
[1763654902675,0.144,2921.1,2920.1,5.99737481]
[1763654902845,0.144,2921.1,2919.9,0.4235]
[1763654903054,0.144,2921.1,2919.3,4.02517626]
[1763654903379,0.4651,2921.0,2919.3,6.85091749]
[1763654903888,0.4651,2921.0,2918.7,0.1111]
[1763654904045,0.4651,2921.0,2919.0,0.90699264]
[1763654904249,0.144,2920.9,2918.7,6.96342858]
[1763654904551,0.144,2920.9,2918.5,6.85283536]
[1763654904780,0.144,2920.9,2918.9,7.25186826]
[1763654904985,0.144,2920.9,2918.6,1.41047036]
[1763654904986,4.09182343,2923.5,2920.9,10.756901]
[1763654905143,2.30842158,2923.6,2923.4,0.405504]
[1763654905345,0.144,2924.8,2921.4,0.90785022]
[1763654905566,0.144,2924.8,2922.9,7.25186826]
[1763654905800,0.144,2924.8,2923.0,0.90699264]
[1763654905964,0.144,2924.8,2923.4,7.25186826]
[1763654906161,0.145,2924.7,2923.0,0.81588609]
[1763654906376,0.145,2924.7,2924.3,7.25186826]
[1763654906667,0.145,2924.6,2924.3,7.25186826]
[1763654906866,0.145,2924.6,2922.8,1.12457758]
[1763654906867,0.4651,2926.5,2924.6,1.31249664]
[1763654907187,0.145,2926.4,2926.2,7.25186826]
[1763654907387,0.145,2926.3,2925.7,3.41797366]
[1763654907563,0.6631,2927.4,2926.2,7.25186826]
[1763654907763,0.4651,2928.2,2925.8,0.405504]
[1763654908094,0.4651,2928.2,2925.7,11.01156308]
[1763654908095,0.145,2928.1,2925.7,11.01156308]
[1763654908296,0.4651,2928.2,2926.7,7.25186826]
[1763654908608,0.4651,2928.1,2926.9,7.25186826]
[1763654908808,0.145,2928.0,2926.8,0.72518683]
[1763654908980,1.234,2928.3,2926.4,7.25186826]
[1763654909162,0.145,2928.2,2926.6,7.25186826]
[1763654909370,0.90699264,2928.0,2925.8,3.41786861]
[1763654909594,0.145,2927.9,2925.9,7.62783486]
[1763654909791,2.276281,2927.8,2925.9,7.62783486]
[1763654910066,2.276281,2927.8,2925.7,3.41798119]
[1763654910067,0.90699264,2927.7,2925.5,7.25186826]
[1763654910292,5.731837,2927.6,2925.0,7.25186826]
[1763654910474,0.90699264,2927.2,2925.0,7.25186826]
[1763654910784,4.249264,2927.2,2925.0,7.25186826]
[1763654911086,3.509983,2926.8,2924.5,7.25186826]
[1763654911290,0.90699264,2926.8,2925.0,7.25186826]
[1763654911593,3.08371864,2926.5,2924.1,7.25186826]
[1763654911919,0.62,2926.7,2924.2,0.71795255]
[1763654912206,0.62,2926.7,2924.1,0.90785022]
[1763654912207,0.476,2926.6,2924.3,0.71795255]
[1763654912502,0.476,2926.6,2924.0,7.25186826]
[1763654912503,0.90699264,2926.5,2924.0,7.25186826]
[1763654912664,0.0992,2926.2,2924.1,0.72518683]
[1763654912865,4.253258,2926.1,2923.8,10.67207484]
[1763654913107,6.8355036,2925.9,2923.8,14.09228142]
[1763654913463,0.62,2925.8,2923.8,0.90699264]
[1763654913707,0.476,2925.8,2923.9,0.71596904]
[1763654913874,0.62,2925.7,2923.7,7.25186826]
[1763654914073,0.62,2925.7,2923.8,0.72518683]
[1763654914074,2.410786,2925.6,2923.8,0.72518683]
[1763654914406,0.144,2925.5,2923.8,0.72518683]
[1763654914592,0.1977,2925.5,2923.8,0.72518683]
[1763654915101,0.1977,2925.5,2924.2,7.25186826]
[1763654915311,0.144,2925.4,2924.2,7.25186826]
[1763654915506,0.62,2925.4,2923.2,0.90785022]
[1763654915677,0.476,2925.4,2923.5,7.25186826]
[1763654915882,0.1977,2930.1,2926.6,3.258959]
[1763654916113,7.157873,2929.3,2926.7,0.45960574]
[1763654916420,0.0992,2929.2,2926.8,0.405504]
[1763654916738,0.145,2929.1,2927.0,3.258959]
[1763654917008,0.145,2929.0,2928.2,10.08909354]
[1763654917217,10.0,2933.0,2928.7,3.258959]
[1763654917370,0.1977,2930.9,2929.5,3.258959]
[1763654917570,0.476,2931.3,2929.5,10.91633126]
[1763654917769,0.1977,2931.5,2930.3,3.258959]
[1763654918019,0.6737,2932.0,2930.2,7.25186826]
[1763654918020,0.145,2931.4,2930.8,3.258959]
[1763654918227,0.4821,2932.6,2931.3,3.258959]
[1763654918392,0.145,2932.5,2931.4,10.51082726]
[1763654918717,0.145,2932.4,2931.5,0.405504]
[1763654918881,0.145,2932.3,2931.4,7.25186826]
[1763654919077,0.145,2932.3,2931.0,3.258959]
[1763654919277,0.4821,2933.2,2931.4,7.25186826]
[1763654919584,0.145,2933.1,2932.0,7.25186826]
[1763654920009,0.4841,2933.8,2932.8,7.25186826]
[1763654920214,0.145,2933.7,2932.3,7.25186826]
[1763654920394,4.243906,2933.5,2931.0,2.64045262]
[1763654920618,0.4821,2933.6,2931.3,3.258959]
[1763654920619,0.90699264,2933.2,2931.3,3.258959]
[1763654920821,0.90699264,2933.2,2931.2,7.25186826]
[1763654920822,0.4821,2933.5,2932.3,7.25186826]
[1763654921005,0.145,2933.4,2929.1,1.70313474]
[1763654921208,0.4821,2933.5,2931.6,7.25186826]
[1763654921407,1.8591,2933.4,2931.6,7.25186826]
[1763654921948,0.4821,2933.3,2931.6,7.25186826]
[1763654922129,0.90699264,2933.1,2929.6,6.82687056]
[1763654922332,0.90699264,2932.8,2930.3,7.25186826]
[1763654922507,0.405504,2933.0,2930.8,7.25186826]
[1763654922709,3.02499164,2932.8,2930.3,7.25186826]
[1763654922910,0.405504,2932.4,2929.8,7.25186826]
[1763654923115,4.146832,2931.8,2929.8,7.25186826]
[1763654923435,4.146832,2931.8,2928.8,4.46541259]
[1763654923436,2.76409264,2931.7,2929.3,7.25186826]
[1763654923636,4.194544,2931.5,2929.3,7.25186826]
[1763654923957,0.51015366,2931.4,2929.4,0.72518683]
[1763654924143,1.31249664,2931.0,2928.4,7.25186826]
[1763654924307,0.0992,2930.7,2928.3,7.25186826]
[1763654924507,0.90699264,2930.5,2928.2,7.25186826]
[1763654924724,0.405504,2931.0,2928.2,7.25186826]
[1763654924725,0.405504,2930.7,2928.2,7.25186826]
[1763654925034,12.44227488,2930.5,2928.4,3.41483403]
[1763654925211,1.38909264,2930.6,2928.4,3.41483403]
[1763654925544,1.82138296,2933.1,2929.7,7.25186826]
[1763654925545,0.4821,2930.5,2929.7,7.25186826]
[1763654925752,0.144,2930.4,2929.7,7.25186826]
[1763654925933,0.144,2930.3,2929.8,0.72518683]
[1763654926450,0.144,2930.2,2929.7,7.25186826]
[1763654926611,0.4821,2931.2,2928.5,7.25186826]
[1763654926810,1.9563,2931.1,2928.5,7.25186826]
[1763654927026,0.90699264,2930.7,2928.6,6.82920166]
[1763654927240,6.620148,2930.6,2928.6,6.82920166]
[1763654927423,3.63342536,2930.6,2928.7,1.40810699]
[1763654927634,1.8571,2930.5,2928.7,1.40810699]
[1763654928168,0.4813,2930.5,2929.0,7.25186826]
[1763654928464,1.231,2930.4,2929.0,7.25186826]
[1763654928638,0.143,2930.3,2929.0,7.25186826]
[1763654928838,1.231,2930.4,2929.1,0.72518683]
[1763654929039,0.143,2930.3,2929.2,3.4139014]
[1763654929268,0.143,2930.3,2928.7,1.40810699]
[1763654929559,0.143,2930.3,2929.0,7.25186826]
[1763654929560,0.143,2930.2,2929.0,7.25186826]
[1763654929770,1.231,2930.3,2929.0,7.25186826]
[1763654929925,0.90699264,2930.9,2929.0,7.25186826]
[1763654930128,0.143,2930.8,2929.0,7.25186826]
[1763654930327,1.8561,2930.8,2929.0,7.25186826]
[1763654930552,0.4821,2930.8,2929.1,0.72518683]
[1763654930857,0.4821,2930.8,2929.5,7.25186826]
[1763654931063,0.4821,2930.7,2929.6,3.41343528]
[1763654931366,0.143,2930.6,2929.5,10.66538154]
[1763654931672,0.143,2930.6,2928.6,7.25186826]
[1763654931898,0.143,2930.6,2928.4,3.41483403]
[1763654931899,0.4821,2930.5,2929.1,7.25186826]
[1763654932177,1.3501429,2930.5,2928.6,7.25186826]
[1763654932382,0.4821,2930.5,2928.6,7.25186826]
[1763654932580,0.4821,2930.4,2928.6,7.25186826]
[1763654933122,3.41261986,2930.3,2928.6,7.25186826]
[1763654933257,3.89463721,2930.4,2928.6,7.25186826]
[1763654933443,1.231,2930.2,2928.6,7.25186826]
[1763654933643,0.4821,2930.3,2928.6,7.25186826]
[1763654933869,1.7131,2930.2,2928.6,7.25186826]
[1763654934074,1.8561,2930.2,2928.3,0.72518683]
[1763654934383,4.31907781,2930.8,2929.4,7.25186826]
[1763654934384,0.143,2930.1,2929.4,7.25186826]
[1763654934888,0.6251,2930.1,2928.5,8.15971848]
[1763654935182,10.23436698,2931.3,2929.1,3.41401795]
[1763654935183,0.143,2930.0,2929.1,3.41401795]
[1763654935357,0.143,2929.9,2929.1,3.41401795]
[1763654935554,10.71862434,2930.7,2929.0,10.66600224]
[1763654935767,3.35978,2930.5,2928.6,3.41460083]
[1763654936002,2.60395507,2930.6,2928.6,6.82920166]
[1763654936205,0.4821,2930.5,2929.0,7.25186826]
[1763654936889,0.38123731,2930.5,2929.0,7.25186826]
[1763654937057,3.41261986,2930.3,2928.5,7.25186826]
[1763654937258,6.82523972,2930.3,2928.6,0.71783975]
[1763654937467,0.3221,2930.2,2928.5,7.25286826]
[1763654937669,0.3221,2930.2,2928.6,7.9707666]
[1763654937886,0.3221,2930.2,2928.6,7.25186826]
[1763654938202,0.72060291,2930.2,2928.6,7.25186826]
[1763654938409,2.366049,2930.1,2928.5,0.001]
[1763654938701,0.72060291,2930.2,2928.6,0.72010696]
[1763654938862,0.4821,2930.1,2928.5,0.001]
[1763654939062,10.23960678,2929.8,2928.5,0.001]
[1763654939293,3.41320226,2929.8,2928.5,0.001]
[1763654939473,0.142,2929.7,2928.5,0.001]
[1763654939675,0.142,2929.7,2928.6,0.72144925]
[1763654939874,0.142,2929.7,2928.5,0.001]
[1763654940106,0.4821,2929.6,2928.5,0.001]
[1763654940414,1.372,2929.5,2928.5,0.001]
[1763654940619,0.18541,2929.4,2928.5,0.001]
[1763654940762,10.23937398,2929.9,2928.5,0.001]
[1763654940763,0.002,2930.6,2928.5,0.001]
[1763654940965,0.4821,2929.8,2928.5,0.001]
[1763654941201,0.4821,2929.8,2928.6,0.72231325]
[1763654941370,3.89535782,2929.8,2928.7,0.72313348]
[1763654941572,7.30861564,2929.8,2928.5,0.001]
[1763654941878,7.024398,2929.6,2928.5,0.001]
[1763654942189,0.7506498,2929.5,2928.5,0.001]
[1763654942389,4.556584,2929.6,2928.5,0.001]
[1763654942589,0.4821,2929.6,2928.5,0.001]
[1763654942892,7.682307,2929.4,2928.5,0.001]
[1763654943076,1.00619264,2928.2,2926.5,1.20402142]
[1763654943300,1.00619264,2928.2,2926.3,1.81635643]
[1763654943301,3.53558596,2928.1,2926.6,0.72471628]
[1763654943501,6.82970182,2928.4,2926.7,1.9287377]
[1763654943502,0.142,2928.0,2926.7,1.9287377]
[1763654943703,2.13462,2927.9,2926.8,0.72471628]
[1763654943990,5.27957564,2927.8,2925.8,1.35472142]
[1763654944192,0.90699264,2927.5,2925.9,0.7258193]
[1763654944493,0.405504,2927.1,2925.1,1.20402142]
[1763654944799,0.405504,2926.6,2924.2,1.20402142]
[1763654945001,0.90699264,2926.8,2924.5,7.25186826]
[1763654945217,0.90699264,2926.6,2924.7,1.20402142]
[1763654945537,3.074439,2926.7,2924.9,1.20402142]
[1763654945538,1.38909264,2926.7,2924.9,1.20402142]
[1763654945702,0.90699264,2926.4,2925.0,0.72723826]
[1763654945904,3.04471664,2926.2,2924.1,1.20402142]
[1763654946109,0.90699264,2926.2,2924.2,1.96570582]
[1763654946292,8.572285,2926.0,2924.3,1.93150844]
[1763654946493,0.405504,2925.8,2923.5,1.20402142]
[1763654946740,0.90699264,2925.3,2923.0,1.20402142]
[1763654947028,0.90699264,2924.9,2923.1,0.72632397]
[1763654947202,0.90699264,2924.6,2922.9,3.42120523]
[1763654947405,0.90699264,2924.6,2922.3,7.25186826]
[1763654947406,0.141,2924.5,2922.6,3.89462925]
[1763654947592,3.142392,2924.4,2922.7,0.72390766]
[1763654947794,3.065,2924.4,2922.6,7.3162679]
[1763654948013,0.58260926,2924.4,2922.7,0.72394298]
[1763654948227,0.141,2924.3,2923.6,7.25186826]
[1763654948527,0.4891,2925.1,2923.2,7.25186826]
[1763654948732,0.4891,2925.1,2923.3,0.72276516]
[1763654948933,0.4891,2925.1,2923.2,7.25186826]
[1763654948934,1.372,2925.0,2923.2,7.25186826]
[1763654949238,1.372,2925.0,2922.8,6.84275352]
[1763654949239,7.74530084,2924.7,2922.8,6.84275352]
[1763654949405,0.141,2924.6,2923.2,7.25186826]
[1763654949931,0.141,2924.5,2923.7,7.25186826]
[1763654950139,7.32507086,2925.7,2923.7,7.25186826]
[1763654950318,1.231,2925.3,2923.8,0.4766]
[1763654950529,0.90699264,2925.1,2923.1,1.20402142]
[1763654950701,0.35237926,2925.0,2922.9,0.4766]
[1763654951041,1.372,2924.9,2923.3,7.25186826]
[1763654951219,7.32717438,2924.8,2923.3,7.25186826]
[1763654951542,0.90699264,2924.7,2923.0,0.4766]
[1763654951720,1.39609264,2924.7,2922.7,10.67331895]
[1763654951938,1.65442042,2924.6,2922.7,15.28296734]
[1763654952234,1.65362042,2924.6,2922.7,11.86147352]
[1763654952431,1.373,2924.5,2923.2,7.25186826]
[1763654952740,1.8621,2924.5,2922.8,0.4766]
[1763654953032,1.39609264,2924.4,2922.7,15.28296734]
[1763654953238,1.39609264,2924.4,2922.7,8.44002283]
[1763654953239,6.83924356,2924.3,2922.7,8.44002283]
[1763654953424,3.41544264,2924.2,2922.3,0.405504]
[1763654953631,3.41544264,2924.2,2922.2,3.57267002]
[1763654953632,0.4891,2924.1,2922.2,3.57267002]
[1763654953947,0.141,2924.0,2922.6,7.25186826]
[1763654954100,0.6301,2924.0,2922.4,0.4766]
[1763654954472,0.1817,2923.9,2922.2,0.1507]
[1763654954623,0.6708,2923.9,2922.2,0.1507]
[1763654954942,2.776337,2923.8,2921.9,3.42243061]
[1763654955238,5.19425,2923.3,2921.3,0.4766]
[1763654955402,0.519425,2923.2,2921.4,6.84599633]
[1763654955597,1.39609264,2923.4,2921.4,3.42297997]
[1763654955835,0.90699264,2923.2,2921.3,7.32283024]
[1763654956131,0.90699264,2923.0,2920.7,0.4766]
[1763654956307,0.4891,2922.9,2922.1,0.001]
[1763654956708,2.092984,2922.8,2922.1,0.001]
[1763654956908,2.374673,2922.6,2922.1,0.001]
[1763654957138,6.8436901,2922.4,2922.1,0.001]
[1763654957325,3.42184505,2922.4,2922.1,0.001]
[1763654957523,0.4891,2923.2,2922.1,0.001]
[1763654957708,1.372,2923.1,2922.1,0.001]
[1763654957900,0.4891,2923.1,2922.1,0.001]
[1763654958100,0.4891,2923.0,2922.1,0.001]
[1763654958345,1.372,2922.9,2922.2,7.25186826]
[1763654958582,0.14,2922.8,2922.2,7.25186826]
[1763654958741,0.14,2922.8,2922.3,0.72528683]
[1763654959358,0.14,2922.8,2922.3,4.14722021]
[1763654959565,0.14,2922.8,2922.2,3.42204407]
[1763654959766,3.42076725,2923.4,2922.2,3.42204407]
[1763654959972,0.14,2922.7,2922.2,3.42204407]
[1763654960688,6.84064712,2923.7,2922.2,3.89864407]
[1763654960855,0.1817,2923.9,2922.1,10.67506256]
[1763654960856,3.60184833,2923.9,2922.4,7.25186826]
[1763654961045,3.60184833,2923.9,2922.4,0.72518683]
[1763654961046,1.8621,2923.8,2922.4,0.72518683]
[1763654961245,6.8408811,2923.6,2922.1,0.001]
[1763654961484,1.373,2923.5,2922.1,0.001]
[1763654961873,3.90946733,2923.7,2922.1,0.001]
[1763654962192,0.4891,2923.6,2922.1,0.001]
[1763654962344,1.373,2923.5,2922.1,0.001]
[1763654962543,0.4891,2923.6,2922.1,0.001]
[1763654962544,3.60792064,2923.3,2922.1,0.001]
[1763654962786,0.18621,2923.4,2922.1,0.001]
[1763654962945,0.90699264,2923.0,2922.1,0.001]
[1763654963144,10.26342798,2923.0,2922.1,0.001]
[1763654963460,1.373,2922.9,2922.1,0.001]
[1763654963653,1.8621,2922.9,2922.1,0.001]
[1763654963853,1.373,2922.8,2922.1,0.001]
[1763654964184,2.73253853,2922.8,2922.1,0.001]
[1763654964390,0.4891,2922.8,2922.1,0.001]
[1763654964688,0.14,2922.7,2922.1,0.001]
[1763654965171,3.56155066,2922.7,2922.1,0.001]
[1763654965375,3.56150279,2922.7,2922.1,0.001]
[1763654965570,6.98300558,2922.7,2922.1,0.001]
[1763654965885,0.6281,2922.6,2922.1,0.001]
[1763654966072,1.8611,2922.6,2922.1,0.001]
[1763654966270,0.4891,2922.5,2922.1,0.001]
[1763654966487,6.84303606,2922.7,2922.1,0.001]
[1763654966671,3.42114266,2923.0,2922.1,0.001]
[1763654966877,0.4891,2923.8,2922.6,6.00751257]
[1763654967076,0.139,2923.7,2922.7,0.63496619]
[1763654967390,0.139,2923.6,2922.7,3.42149382]
[1763654967547,0.139,2923.5,2922.7,6.84298764]
[1763654967743,0.139,2923.4,2922.7,6.84298764]
[1763654967950,0.139,2923.4,2922.6,0.4766]
[1763654968149,0.139,2923.3,2923.0,6.00751257]
[1763654968554,0.139,2923.3,2923.0,6.48411257]
[1763654968953,7.50982432,2924.4,2922.7,0.4766]
[1763654969167,0.90699264,2924.3,2922.7,1.12501126]
[1763654969526,0.90699264,2924.3,2922.8,6.00751257]
[1763654969527,0.90699264,2924.1,2922.8,6.00751257]
[1763654969646,3.173376,2924.0,2922.8,6.00751257]
[1763654969852,2.2922,2924.0,2922.8,6.00751257]
[1763654970052,1.37539264,2924.1,2922.8,6.00751257]
[1763654970260,1.37539264,2924.1,2922.3,0.472]
[1763654970261,2.20765352,2924.1,2922.3,6.47951257]
[1763654970591,0.4684,2924.0,2922.4,0.72618653]
[1763654970802,3.802098,2923.9,2922.2,9.58028841]
[1763654971092,1.372,2923.8,2922.7,6.00751257]
[1763654971387,1.233,2924.3,2923.2,6.00751257]
[1763654971595,0.139,2923.7,2923.3,0.72620475]
[1763654971790,0.139,2923.7,2922.3,1.86512148]
[1763654971791,0.139,2923.7,2922.7,6.00751257]
[1763654971953,7.02071885,2924.4,2922.8,0.72813129]
[1763654972152,1.372,2924.3,2923.0,1.20402142]
[1763654972352,1.372,2924.3,2922.9,0.72813129]
[1763654972353,1.233,2924.5,2923.2,6.00751257]
[1763654972594,0.138,2924.4,2923.3,0.72813129]
[1763654972776,0.53640792,2924.8,2923.7,6.00751257]
[1763654972978,6.83737308,2925.1,2923.8,0.72813129]
[1763654973152,6.83737308,2925.1,2923.9,0.72813129]
[1763654973153,0.1986,2924.9,2923.9,0.72813129]
[1763654973347,1.371,2924.8,2924.0,0.72813129]
[1763654973587,1.371,2924.8,2924.1,0.72813129]
[1763654973791,1.371,2924.8,2923.7,10.63178383]
[1763654973792,1.371,2924.8,2923.7,6.00751257]
[1763654973997,0.53634858,2925.6,2924.3,6.00751257]
[1763654974300,0.53614107,2927.7,2925.5,6.15821257]
[1763654974462,0.138,2927.2,2926.9,6.00751257]
[1763654974669,0.138,2927.1,2926.9,6.00751257]
[1763654974880,0.53589104,2928.2,2927.0,0.73194772]
[1763654975189,0.138,2927.2,2927.1,0.73194772]
[1763654975391,0.138,2927.2,2926.1,1.22008683]
[1763654975593,3.95668189,2927.2,2926.2,0.7305716]
[1763654975752,0.002,2927.3,2926.4,6.00751257]
[1763654975952,3.41818236,2927.3,2926.5,0.73053527]
[1763654976153,0.0012,2927.3,2926.7,6.00751257]
[1763654976354,0.138,2927.2,2926.8,0.7297508]
[1763654976592,0.138,2927.1,2926.9,0.72969125]
[1763654976762,0.138,2927.1,2926.7,6.00751257]
[1763654976963,0.138,2927.1,2926.2,6.47951257]
[1763654977211,0.138,2927.0,2926.3,0.72979335]
[1763654977518,0.138,2927.0,2925.7,13.31547372]
[1763654977722,0.0012,2927.3,2926.2,6.00751257]
[1763654978039,0.138,2926.9,2925.8,1.80354737]
[1763654978455,0.138,2926.9,2925.7,6.00751257]
[1763654979048,0.138,2926.9,2925.5,0.1507]
[1763654979259,0.90699264,2926.5,2924.4,0.4854]
[1763654979424,0.90699264,2926.5,2924.2,3.41973558]
[1763654979425,0.90699264,2926.2,2924.2,3.41973558]
[1763654979749,1.37,2926.1,2924.1,6.00751257]
[1763654979908,3.25043964,2926.0,2924.1,6.60826383]
[1763654980108,3.25043964,2926.0,2923.8,0.4854]
[1763654980109,0.90699264,2925.6,2923.8,0.4854]
[1763654980350,0.90699264,2925.6,2923.6,6.15821257]
[1763654980555,1.39099264,2925.5,2923.1,6.00751257]
[1763654980718,0.90699264,2924.8,2922.7,1.08615126]
[1763654980916,0.90699264,2924.6,2922.8,0.72839123]
[1763654981212,10.078561,2924.1,2922.4,0.001]
[1763654981540,0.90699264,2924.2,2922.4,0.001]
[1763654981541,4.305872,2923.8,2922.4,0.001]
[1763654981857,0.90699264,2923.6,2922.4,0.001]
[1763654982024,2.026084,2923.4,2922.4,0.001]
[1763654982228,0.484,2923.9,2922.4,0.001]
[1763654982229,0.90699264,2923.9,2922.4,0.001]
[1763654982431,0.137,2923.3,2922.4,0.001]
[1763654983360,1.39099264,2923.8,2922.5,6.00751257]
[1763654983560,8.20964712,2923.7,2922.5,6.00751257]
[1763654983925,0.484,2923.6,2922.4,0.001]
[1763654984858,0.137,2923.5,2922.4,0.001]
[1763654985059,1.37,2923.5,2922.4,0.001]
[1763654985240,1.08819707,2923.5,2922.4,0.001]
[1763654985565,8.2113491,2923.4,2922.4,0.001]
[1763654985863,2.046346,2923.2,2922.4,0.001]
[1763654986171,0.484,2923.3,2922.4,0.001]
[1763654986460,3.4205878,2923.5,2922.4,6.00851257]
[1763654986764,1.5674,2923.4,2922.4,0.001]
[1763654986962,0.405504,2924.6,2922.4,0.001]
[1763654986963,3.42032356,2923.7,2922.4,0.001]
[1763654987263,0.137,2923.3,2922.4,0.001]
[1763654987425,3.55781299,2923.3,2922.4,0.001]
[1763654987762,6.97860456,2923.3,2922.4,0.001]
[1763654988066,0.484,2923.2,2922.4,0.001]
[1763654988484,1.39099264,2923.2,2922.4,0.001]
[1763654988645,0.90699264,2923.2,2922.4,0.001]
[1763654989075,0.137,2923.1,2922.4,0.001]
[1763654989249,0.1974,2923.8,2922.4,0.001]
[1763654989591,8.21066511,2923.7,2922.4,0.001]
[1763654989891,3.42025766,2923.8,2922.4,0.001]
[1763654990055,0.136,2923.7,2922.5,0.35736417]
[1763654990246,4.65285568,2924.1,2922.5,0.35736417]
[1763654990450,0.73391504,2924.7,2922.7,0.405504]
[1763654990647,1.233,2924.8,2923.1,1.31249664]
[1763654990648,0.136,2924.6,2923.1,1.31249664]
[1763654990981,4.65182099,2925.0,2923.2,1.21383449]
[1763654991184,0.484,2925.1,2923.3,0.9810676]
[1763654991357,0.136,2925.0,2923.4,1.13390307]
[1763654991557,0.136,2925.0,2923.5,3.42055755]
[1763654991558,3.41888794,2925.0,2923.5,3.42055755]
[1763654991762,0.136,2924.9,2923.6,0.72834645]
[1763654992058,0.136,2924.9,2923.0,7.6331034]
[1763654992059,0.136,2924.9,2923.0,0.405504]